bitfinex/quotes_SOLUSD_20251207
["timestamp","ask_amount","ask_price","bid_price","bid_amount"]
[1765101799409,11.36288812,132.07,132.03,8.29398024]
[1765101799608,3.50110943,132.06,132.02,7.57440977]
[1765101799922,3.79110943,132.06,132.02,8.29440977]
[1765101801529,0.29,132.06,132.02,11.7955192]
[1765101803528,0.29,132.06,132.02,11.0755192]
[1765101803830,0.29,132.06,132.03,8.23396786]
[1765101804035,0.29,132.06,132.03,7.57396786]
[1765101805843,0.29,132.06,132.03,8.23396786]
[1765101806337,11.36288812,132.07,132.03,8.23396786]
[1765101806723,0.29,132.06,132.03,8.23396786]
[1765101810719,3.50110943,132.05,132.01,7.57480873]
[1765101811037,3.50110943,132.04,132.0,7.57551222]
[1765101811342,3.50110943,132.03,132.0,7.57551222]
[1765101811538,3.79110943,132.03,132.0,7.57551222]
[1765101811751,0.29,132.02,132.0,7.57551222]
[1765101811927,3.50110943,132.03,132.0,7.57551222]
[1765101812131,3.79110943,132.03,132.0,7.57551222]
[1765101812429,3.79110943,132.03,132.0,0.66]
[1765101814061,0.29,132.03,132.0,0.66]
[1765101814355,0.29,132.02,131.99,30.67737564]
[1765101814728,0.29,132.03,131.99,30.67737564]
[1765101816775,0.29,132.03,132.0,8.23559969]
[1765101818340,11.36310414,132.07,132.02,3.50110943]
[1765101818539,7.86199471,132.07,132.03,3.50110943]
[1765101818937,7.86199471,132.07,132.03,4.16110943]
[1765101819368,0.29,132.06,132.03,0.66]
[1765101820270,3.79110943,132.06,132.03,8.23402275]
[1765101820560,3.79110943,132.06,132.03,7.57402275]
[1765101820766,0.29,132.06,132.03,8.23402275]
[1765101820968,3.79110943,132.06,132.03,8.23402275]
[1765101822277,0.29,132.06,132.03,8.23402275]
[1765101825948,7.57199471,132.07,132.03,11.73513218]
[1765101826266,0.29,132.06,132.03,8.23402275]
[1765101830383,7.86232544,132.06,132.0,9.04]
[1765101830554,3.50110943,132.04,132.01,0.72]
[1765101830977,12.11110943,132.04,132.0,7.57535586]
[1765101831174,8.32,132.04,132.01,0.72]
[1765101831556,8.32,132.04,132.01,8.29482525]
[1765101831759,8.32,132.04,132.02,0.72]
[1765101833965,2.53406589,132.05,132.02,8.29455992]
[1765101834168,10.10600497,132.07,132.02,10.53862581]
[1765101834370,18.13600497,132.07,132.03,0.72]
[1765101834561,18.13600497,132.07,132.03,8.2936159]
[1765101834562,18.42600497,132.07,132.03,8.2936159]
[1765101835050,18.42600497,132.07,132.04,0.72]
[1765101835584,15.89193908,132.07,132.04,0.72]
[1765101841484,18.13600497,132.07,132.04,0.72]
[1765101841857,2.53406589,132.06,132.02,8.24436699]
[1765101842057,2.24406589,132.05,132.01,7.5748575]
[1765101842277,2.24406589,132.05,132.02,8.24450606]
[1765101842686,2.24406589,132.05,132.03,0.67]
[1765101843692,9.8171749,132.05,132.01,7.57497709]
[1765101843864,9.8171749,132.05,132.02,0.67]
[1765101844894,7.57310901,132.05,132.02,0.67]
[1765101848593,7.57310901,132.05,132.02,8.2445471]
[1765101848792,7.57310901,132.05,132.03,0.67]
[1765101849094,7.57231561,132.06,132.03,0.67]
[1765101849275,7.86231561,132.06,132.03,0.67]
[1765101853907,8.32,132.06,132.04,7.57346258]
[1765101854116,8.32,132.06,132.04,8.24346258]
[1765101857605,10.85406589,132.06,132.02,8.24405165]
[1765101857776,18.42641367,132.06,132.02,7.57405165]
[1765101858107,18.13641367,132.06,132.03,0.67]
[1765101861903,18.13641367,132.06,132.03,8.24403287]
[1765101862211,18.13641367,132.06,132.02,8.23450137]
[1765101862212,0.29,132.05,132.02,8.23450137]
[1765101862590,18.13641367,132.06,132.02,7.57450137]
[1765101862786,18.42641367,132.06,132.03,0.66]
[1765101862980,18.42641367,132.06,132.01,7.57518369]
[1765101863180,18.42641367,132.06,132.02,0.66]
[1765101864099,18.42641367,132.06,132.02,8.23449608]
[1765101865206,18.42641367,132.06,132.02,0.66]
[1765101866191,10.10713334,132.05,132.02,0.66]
[1765101866893,10.10713334,132.05,132.02,8.23452203]
[1765101867503,2.24406589,132.05,132.03,0.66]
[1765101868208,18.13655241,132.06,132.03,0.66]
[1765101869196,18.42655241,132.06,132.03,0.66]
[1765101869606,18.13655241,132.06,132.03,0.66]
[1765101870291,15.89248652,132.06,132.03,0.66]
[1765101878925,2.24406589,132.04,132.01,0.66]
[1765101879140,10.56406589,132.04,132.0,0.66]
[1765101879316,2.24406589,132.03,132.0,0.66]
[1765101879623,2.53406589,132.03,132.0,0.66]
[1765101880003,9.81849125,132.03,132.0,0.66]
[1765101881610,8.32,132.06,132.0,10.47949151]
[1765101881921,2.24406589,132.05,132.0,31.66492208]
[1765101882116,2.24406589,132.05,132.01,0.66]
[1765101882829,2.24406589,132.05,132.01,8.23467333]
[1765101883334,16.18274658,132.06,132.02,0.66]
[1765101883335,18.13681247,132.06,132.02,0.66]
[1765101883627,10.56406589,132.06,132.02,0.66]
[1765101883999,8.32,132.06,132.02,2.90406589]
[1765101884426,8.32,132.06,132.03,0.66]
[1765101884810,8.32,132.06,132.03,8.23365039]
[1765101885011,8.32,132.06,132.04,0.66]
[1765101888234,10.56406589,132.06,132.04,0.66]
[1765101890034,2.24406589,132.06,132.04,0.66]
[1765101891115,2.53406589,132.06,132.02,8.2646099]
[1765101891317,2.24406589,132.05,132.02,8.2646099]
[1765101891625,2.24406589,132.05,132.03,0.69]
[1765101892335,7.57243264,132.06,132.03,0.69]
[1765101892636,3.50621645,132.05,132.03,0.69]
[1765101893342,11.07864909,132.06,132.03,0.69]
[1765101894339,11.07864909,132.06,132.03,8.26401408]
[1765101895751,3.50621645,132.06,132.03,7.57401408]
[1765101895914,3.50621645,132.06,132.04,0.69]
[1765101896118,3.50621645,132.07,132.04,0.69]
[1765101896413,11.82621645,132.07,132.04,0.69]
[1765101897244,19.39803369,132.07,132.04,0.69]
[1765101898038,3.50621645,132.06,132.04,0.69]
[1765101901348,7.57237868,132.06,132.04,0.69]
[1765101901555,3.50621645,132.05,132.02,8.27441841]
[1765101901757,3.50621645,132.05,132.02,0.7]
[1765101902124,11.82621645,132.05,132.02,0.7]
[1765101902627,3.50621645,132.04,132.02,0.7]
[1765101904435,15.89322547,132.05,132.02,8.27455223]
[1765101904656,7.57250253,132.06,132.02,11.78076868]
[1765101904860,7.57250253,132.06,132.03,0.7]
[1765101905029,7.57250253,132.06,132.03,8.27399089]
[1765101905223,7.57250253,132.06,132.04,0.7]
[1765101907059,19.39821521,132.07,132.04,0.7]
[1765101908662,15.89199876,132.07,132.04,0.7]
[1765101909271,15.89199876,132.07,132.04,8.27345527]
[1765101909869,15.89199876,132.07,132.05,0.7]
[1765101915182,7.57199876,132.07,132.05,0.7]
[1765101915379,15.89199876,132.07,132.05,0.7]
[1765101919077,7.57199876,132.07,132.05,0.7]
[1765101919383,15.89199876,132.07,132.05,0.7]
[1765101923091,15.89199876,132.07,132.04,0.7]
[1765101938090,34.8213544,132.07,132.0,8.32]
[1765101938280,0.29,132.06,132.02,0.7]
[1765101938473,8.32,132.05,132.02,0.7]
[1765101942596,8.32,132.05,132.02,8.27445386]
[1765101943096,0.29,132.04,132.0,8.2757205]
[1765101943393,0.29,132.04,132.01,0.7]
[1765101944165,8.32,132.03,132.01,0.7]
[1765101948802,7.57379706,132.04,132.01,0.7]
[1765101951179,35.25023801,132.06,132.01,8.27492157]
[1765101951380,24.628864,132.06,132.01,8.27492157]
[1765101951579,24.628864,132.06,132.02,0.68]
[1765101952407,32.20138771,132.06,132.02,8.25459157]
[1765101953792,32.20138771,132.06,132.03,0.68]
[1765101954400,0.29,132.05,132.02,0.72]
[1765101955612,51.42217674,132.06,132.02,0.72]
[1765101956782,0.29,132.05,132.01,0.72]
[1765101956989,8.32,132.04,132.01,0.72]
[1765101957607,7.5740362,132.03,132.01,0.72]
[1765101960400,7.8640362,132.03,132.0,0.72]
[1765101960614,7.5740362,132.03,132.0,0.72]
[1765101960912,8.32,132.02,132.0,0.72]
[1765101965520,7.5740362,132.03,132.0,0.72]
[1765101965697,15.8940362,132.03,132.0,0.72]
[1765101967313,7.5740362,132.03,132.0,0.72]
[1765101967513,15.8940362,132.03,132.0,0.72]
[1765101967689,15.8940362,132.03,132.0,8.29566617]
[1765101968020,8.32,132.03,132.0,8.29566617]
[1765101968316,8.32,132.03,132.01,0.72]
[1765101968520,15.8937174,132.04,132.01,0.72]
[1765101971319,16.1837174,132.04,132.01,0.72]
[1765101971524,16.1837174,132.04,131.99,7.57607641]
[1765101971904,16.1837174,132.04,132.0,0.72]
[1765101973926,35.11737386,132.04,132.0,0.72]
[1765101974910,7.5746099,132.02,131.97,15.89727345]
[1765101975110,15.8946099,132.02,131.99,0.72]
[1765101975311,0.29,132.01,131.98,0.72]
[1765101975529,8.32,132.0,131.98,0.72]
[1765101977429,15.89587551,132.0,131.98,0.72]
[1765101978331,7.57587551,132.0,131.98,0.72]
[1765101978534,15.89587551,132.0,131.98,0.72]
[1765101978832,0.29,131.99,131.96,0.72]
[1765101979043,8.32,131.98,131.95,0.92]
[1765101979224,15.89690687,131.98,131.95,0.92]
[1765101979533,8.32,131.98,131.96,0.72]
[1765101981111,8.32,131.98,131.95,8.498538]
[1765101981310,16.1870308,131.98,131.95,0.92]
[1765101981939,16.1870308,131.98,131.95,0.2]
[1765101982238,23.96663004,131.98,131.95,0.92]
[1765101983040,15.35663004,131.98,131.96,0.72]
[1765101983245,8.32,131.97,131.96,0.72]
[1765101984246,8.32,131.97,131.95,0.92]
[1765101984618,8.32,131.97,131.96,0.72]
[1765101984868,15.8970308,131.98,131.96,0.72]
[1765101985031,15.8970308,131.98,131.95,0.2]
[1765101985232,15.8970308,131.98,131.96,0.72]
[1765101985747,0.5,131.97,131.96,0.72]
[1765101986446,0.5,131.97,131.95,0.2]
[1765101986651,0.5,131.97,131.96,0.72]
[1765101987248,8.07756959,131.97,131.95,0.92]
[1765101992735,8.07756959,131.97,131.96,0.72]
[1765101992934,8.07756959,131.97,131.95,0.92]
[1765101994361,8.07756959,131.97,131.96,0.72]
[1765101995762,8.07756959,131.97,131.95,0.92]
[1765102000638,8.07756959,131.97,131.95,0.2]
[1765102000851,8.07756959,131.97,131.95,0.92]
[1765102001257,8.07756959,131.97,131.96,0.72]
[1765102001646,8.07756959,131.97,131.95,0.92]
[1765102003054,8.07756959,131.97,131.96,0.72]
[1765102003765,8.07756959,131.97,131.95,0.2]
[1765102003947,8.07756959,131.97,131.95,0.92]
[1765102004270,8.07756959,131.97,131.96,0.72]
[1765102005881,7.57756959,131.97,131.96,0.72]
[1765102009271,7.57756959,131.97,131.95,0.2]
[1765102009468,8.32,131.96,131.95,0.2]
[1765102010473,8.32,131.96,131.95,0.92]
[1765102011672,15.89805395,131.96,131.95,0.92]
[1765102015361,15.89805395,131.96,131.95,0.2]
[1765102015763,15.89805395,131.96,131.95,0.9]
[1765102016178,15.89805395,131.96,131.95,0.2]
[1765102021061,32.49691795,131.96,131.95,0.2]
[1765102021379,36.03239508,131.96,131.95,0.2]
[1765102021555,44.84234,131.96,131.95,0.2]
[1765102025379,27.42239508,131.96,131.95,0.9]
[1765102025688,24.38691795,131.96,131.95,0.9]
[1765102034991,7.5746099,132.02,131.95,8.47862826]
[1765102035290,8.32,132.01,131.96,0.7]
[1765102035467,42.82084121,132.02,131.96,0.7]
[1765102035785,8.32,132.01,131.96,0.7]
[1765102036686,15.89540453,132.01,131.97,7.57747973]
[1765102037374,15.89540453,132.01,131.98,0.7]
[1765102039579,15.89540453,132.01,131.98,8.27688994]
[1765102040090,15.89540453,132.01,131.99,0.7]
[1765102041493,7.57540453,132.01,131.99,0.7]
[1765102045389,32.20364054,132.02,131.99,0.7]
[1765102045693,15.89477654,132.02,131.99,0.7]
[1765102047791,7.57420641,132.03,131.99,8.27632955]
[1765102048086,139.54143006,132.05,131.99,8.27632955]
[1765102048087,7.57369397,132.04,131.99,8.27632955]
[1765102048287,104.3,132.05,132.0,0.68]
[1765102048506,8.32,132.07,132.0,0.68]
[1765102049668,15.89194578,132.07,132.01,7.57518369]
[1765102050172,15.89194578,132.07,132.02,0.68]
[1765102051079,16.58194578,132.07,132.02,0.68]
[1765102051281,16.58194578,132.07,132.03,7.5740362]
[1765102051783,15.89194578,132.07,132.04,0.68]
[1765102052172,8.32,132.07,132.04,0.68]
[1765102052591,24.57027462,132.08,132.04,0.68]
[1765102052890,8.32,132.07,132.04,0.68]
[1765102057994,16.58190131,132.07,132.04,0.68]
[1765102058494,15.89190131,132.07,132.03,7.5740362]
[1765102058695,15.89190131,132.07,132.02,8.25437105]
[1765102058696,0.69,132.06,132.02,8.25437105]
[1765102059595,0.69,132.06,132.02,7.57437105]
[1765102059801,8.2625534,132.06,132.03,0.68]
[1765102060988,8.32,132.05,132.03,0.68]
[1765102068705,9.01,132.05,132.02,7.57438505]
[1765102068907,9.01,132.05,132.02,8.25438505]
[1765102069911,8.32,132.05,132.03,8.25398389]
[1765102070084,35.92768052,132.08,132.03,8.25398389]
[1765102070085,15.89192922,132.07,132.03,8.25398389]
[1765102070276,15.89192922,132.07,132.04,0.68]
[1765102071301,16.57192922,132.07,132.04,0.68]
[1765102072107,8.25192922,132.07,132.04,0.68]
[1765102072308,16.57192922,132.07,132.04,0.68]
[1765102072487,15.89192922,132.07,132.04,0.68]
[1765102074704,16.57192922,132.07,132.04,0.68]
[1765102076801,15.89192922,132.07,132.04,0.68]
[1765102077102,15.89119918,132.08,132.04,8.25333369]
[1765102077484,15.89119918,132.08,132.05,0.69]
[1765102078909,15.89119918,132.08,132.05,8.26281821]
[1765102079111,8.32,132.08,132.05,8.26281821]
[1765102079312,8.32,132.08,132.06,0.69]
[1765102080319,111.8708578,132.09,132.06,0.69]
[1765102080613,8.32,132.08,132.06,0.69]
[1765102082914,120.1908578,132.09,132.06,0.69]
[1765102085831,112.62,132.09,132.06,8.26215427]
[1765102086303,112.62,132.09,132.07,0.72]
[1765102087903,8.32,132.09,132.07,0.72]
[1765102098433,15.89064629,132.09,132.07,0.72]
[1765102104043,16.54064629,132.09,132.06,0.67]
[1765102104229,0.65,132.08,132.05,0.67]
[1765102104425,0.65,132.08,132.02,26.51113466]
[1765102104631,0.65,132.08,132.03,0.67]
[1765102105539,7.57174225,132.07,132.03,8.24380162]
[1765102105942,8.22174225,132.07,132.04,0.67]
[1765102106643,7.57116898,132.08,132.04,8.24333829]
[1765102107020,7.57116898,132.08,132.05,0.67]
[1765102108832,8.22116898,132.08,132.05,0.67]
[1765102109644,7.57116898,132.08,132.05,0.67]
[1765102110043,8.22116898,132.08,132.05,0.67]
[1765102111234,0.65,132.07,132.03,8.24384351]
[1765102111448,0.65,132.07,132.04,0.67]
[1765102112347,8.32,132.06,132.01,0.67]
[1765102112651,7.57288905,132.05,132.01,0.67]
[1765102112856,8.22288905,132.05,132.01,0.67]
[1765102113843,0.65,132.04,132.01,0.67]
[1765102114251,8.22356982,132.04,132.01,0.67]
[1765102115838,8.32,132.03,132.01,0.67]
[1765102122456,15.89404181,132.03,132.01,0.67]
[1765102122656,8.32,132.03,132.01,0.67]
[1765102123452,16.54368508,132.04,132.01,0.67]
[1765102124949,8.22368508,132.04,132.01,0.67]
[1765102125155,16.54368508,132.04,132.01,0.67]
[1765102128362,8.22368508,132.04,132.01,0.67]
[1765102128667,16.54368508,132.04,132.01,0.67]
[1765102132165,16.54368508,132.04,132.01,8.24512028]
[1765102133968,8.32,132.04,132.02,0.66]
[1765102134149,18.93123334,132.06,132.02,0.66]
[1765102134150,8.32,132.06,132.02,0.66]
[1765102135055,15.89248694,132.06,132.02,8.23432364]
[1765102135460,15.89248694,132.06,132.03,0.66]
[1765102137251,7.57248694,132.06,132.03,0.66]
[1765102141160,7.57248694,132.06,132.03,8.23397174]
[1765102141866,7.57248694,132.06,132.04,0.71]
[1765102143576,112.59189686,132.07,132.04,0.71]
[1765102143762,8.32,132.06,132.04,8.28343221]
[1765102144273,8.32,132.06,132.05,0.71]
[1765102145578,23.87965174,132.09,132.05,0.71]
[1765102145780,32.86965174,132.09,132.05,0.71]
[1765102147064,0.67,132.08,132.05,0.71]
[1765102147982,8.32,132.07,132.03,0.71]
[1765102148466,0.67,132.06,132.03,0.71]
[1765102148668,8.32,132.05,132.03,0.71]
[1765102152182,16.56294476,132.05,132.02,0.71]
[1765102152370,0.67,132.04,132.01,8.28506387]
[1765102152684,8.24352738,132.04,132.01,8.28506387]
[1765102153284,8.24352738,132.04,132.01,7.57506387]
[1765102153487,8.24352738,132.04,132.02,0.71]
[1765102156085,7.57352738,132.04,132.02,0.71]
[1765102158791,8.24352738,132.04,132.0,7.57550705]
[1765102158993,0.67,132.03,132.0,8.28550705]
[1765102159166,8.24352738,132.04,132.01,0.71]
[1765102159568,0.67,132.03,132.01,0.71]
[1765102159767,7.57352738,132.04,132.01,0.71]
[1765102159969,8.24352738,132.04,132.01,0.71]
[1765102163391,0.72,132.03,131.99,8.28610739]
[1765102163582,0.72,132.03,131.99,7.57610739]
[1765102163765,0.72,132.03,132.0,0.71]
[1765102164391,16.308864,132.02,132.0,0.71]
[1765102165692,17.028864,132.02,131.99,8.28610739]
[1765102166066,16.308864,132.02,132.0,0.71]
[1765102166270,24.628864,132.02,132.0,0.71]
[1765102171794,32.20351521,132.02,132.0,0.71]
[1765102181706,32.92351521,132.02,132.0,0.71]
[1765102182811,32.20351521,132.02,132.0,0.71]
[1765102186314,104.3,132.08,132.0,24.59458695]
[1765102186503,104.3,132.08,132.01,8.80994492]
[1765102186812,104.3,132.08,132.01,32.26186206]
[1765102187009,104.3,132.08,132.02,0.71]
[1765102187602,7.57174225,132.07,132.03,7.5740362]
[1765102187988,7.57174225,132.07,132.04,0.71]
[1765102188512,0.72,132.06,132.03,0.71]
[1765102188697,0.72,132.06,132.02,0.71]
[1765102188897,8.32,132.05,132.02,0.71]
[1765102189414,9.04,132.05,132.02,0.71]
[1765102189611,16.61301301,132.05,132.02,0.71]
[1765102189913,15.89301301,132.05,132.02,0.71]
[1765102191815,8.32,132.05,132.02,8.28456107]
[1765102192413,8.32,132.05,132.03,0.72]
[1765102193200,16.58196173,132.07,132.03,0.72]
[1765102193401,16.58196173,132.07,132.03,8.29378427]
[1765102193812,16.58196173,132.07,132.04,0.72]
[1765102195113,135.2966332,132.08,132.04,8.29315999]
[1765102195422,8.32,132.07,132.05,0.71]
[1765102199122,131.48710188,132.08,132.05,0.71]
[1765102199325,8.32,132.07,132.05,0.71]
[1765102201618,8.25184618,132.07,132.04,8.28315999]
[1765102201826,16.57184618,132.07,132.04,0.71]
[1765102202227,0.68,132.06,132.03,8.28379366]
[1765102202824,8.25258394,132.06,132.02,0.71]
[1765102203005,0.68,132.05,132.02,0.71]
[1765102203331,27.93900259,132.05,132.02,0.71]
[1765102204823,35.5120608,132.05,132.02,0.71]
[1765102208116,16.57305821,132.05,132.02,0.71]
[1765102210440,15.89305821,132.05,132.02,8.28454298]
[1765102210630,8.32,132.05,132.02,8.28454298]
[1765102210810,8.32,132.05,132.03,0.71]
[1765102211226,34.83148836,132.06,132.03,0.71]
[1765102212113,34.83148836,132.06,132.03,8.2839785]
[1765102212319,7.57198614,132.07,132.03,8.2839785]
[1765102212625,8.32,132.06,132.04,0.71]
[1765102213228,8.32,132.07,132.04,0.71]
[1765102214744,8.32,132.07,132.04,8.28331335]
[1765102216544,8.32,132.07,132.05,0.71]
[1765102225052,111.8713632,132.08,132.05,0.71]
[1765102225242,8.32,132.07,132.05,0.71]
[1765102225848,8.32,132.07,132.05,8.2828807]
[1765102226145,112.62,132.08,132.05,8.2828807]
[1765102226327,112.62,132.08,132.06,0.71]
[1765102226530,42.81467768,132.1,132.06,0.71]
[1765102226729,23.8791258,132.1,132.06,0.71]
[1765102227247,23.8791258,132.1,132.06,8.28217755]
[1765102227725,23.8791258,132.1,132.07,0.71]
[1765102228554,16.308864,132.1,132.07,0.71]
[1765102229051,112.54908506,132.12,132.07,0.71]
[1765102229351,7.56844236,132.13,132.07,16.60119146]
[1765102229726,7.56844236,132.13,132.08,0.71]
[1765102230043,24.828864,132.14,132.08,0.71]
[1765102230044,0.2,132.14,132.08,0.71]
[1765102230249,0.2,132.14,132.09,8.80994492]
[1765102230627,0.2,132.14,132.1,0.71]
[1765102231241,0.2,132.14,132.11,7.5694497]
[1765102231643,0.2,132.14,132.12,0.71]
[1765102232160,0.2,132.14,132.13,8.80994492]
[1765102232628,0.1,132.18,132.13,25.82880892]
[1765102232837,0.1,132.18,132.15,8.80994492]
[1765102233340,0.1,132.18,132.17,7.56601346]
[1765102233761,0.1,132.18,132.17,8.27601346]
[1765102233952,0.1,132.18,132.17,0.71]
[1765102235333,0.1,132.18,132.17,8.27601346]
[1765102237327,0.1,132.18,132.17,0.71]
[1765102237949,0.1,132.18,132.16,7.56640212]
[1765102238152,0.1,132.18,132.16,0.71]
[1765102240449,0.1,132.18,132.15,8.32]
[1765102240657,0.78,132.18,132.15,16.59708965]
[1765102241056,0.78,132.18,132.16,0.71]
[1765102241232,0.1,132.18,132.16,0.71]
[1765102244239,0.78,132.18,132.15,7.56708965]
[1765102244544,0.1,132.18,132.16,0.71]
[1765102245662,0.1,132.18,132.16,8.27635436]
[1765102246041,0.1,132.18,132.17,0.71]
[1765102247343,0.1,132.18,132.16,7.56635436]
[1765102247344,0.1,132.18,132.16,8.27635436]
[1765102247659,0.1,132.18,132.16,7.56635436]
[1765102247859,0.1,132.18,132.15,7.56714988]
[1765102248042,0.1,132.18,132.16,0.71]
[1765102248660,0.1,132.18,132.16,8.27655659]
[1765102248862,0.1,132.18,132.16,7.56655659]
[1765102249059,0.1,132.18,132.17,0.71]
[1765102250767,0.1,132.18,132.17,8.27601346]
[1765102252479,0.1,132.18,132.16,15.88648847]
[1765102252675,0.1,132.18,132.17,0.69]
[1765102252984,0.1,132.18,132.16,16.57648847]
[1765102253371,0.1,132.18,132.17,0.69]
[1765102253583,0.8,132.18,132.15,8.25698142]
[1765102254396,0.8,132.18,132.15,7.56698142]
[1765102254556,0.8,132.18,132.15,8.26698142]
[1765102255476,0.1,132.18,132.16,0.7]
[1765102256262,0.1,132.18,132.16,8.26652528]
[1765102258076,0.1,132.18,132.16,7.56652528]
[1765102258262,0.1,132.18,132.17,0.7]
[1765102258976,0.1,132.18,132.16,7.56652528]
[1765102259178,0.1,132.18,132.16,8.26652528]
[1765102259377,0.1,132.18,132.16,7.56652528]
[1765102259672,0.1,132.18,132.17,0.7]
[1765102260072,0.1,132.18,132.16,0.7]
[1765102260266,0.1,132.18,132.17,0.7]
[1765102260466,0.1,132.18,132.16,0.7]
[1765102260878,0.8,132.18,132.15,26.48424763]
[1765102261183,0.8,132.18,132.15,27.18424763]
[1765102261563,0.1,132.18,132.16,0.7]
[1765102262284,0.1,132.18,132.16,8.26609851]
[1765102262482,0.1,132.18,132.17,0.7]
[1765102263652,0.1,132.18,132.17,9.02]
[1765102264458,0.1,132.18,132.17,16.58601346]
[1765102281893,0.79,132.18,132.17,7.56601346]
[1765102283072,0.79,132.18,132.16,7.56648918]
[1765102288601,11.8538548,132.18,132.14,7.56733799]
[1765102289102,0.69,132.17,132.14,7.56733799]
[1765102289479,4.18822109,132.17,132.14,7.56733799]
[1765102289682,0.69,132.16,132.14,7.56733799]
[1765102290401,4.18822109,132.17,132.15,7.56715853]
[1765102290599,0.69,132.16,132.15,7.56715853]
[1765102290897,3.59822109,132.18,132.15,7.56715853]
[1765102291201,0.69,132.17,132.15,7.56715853]
[1765102293398,4.18822109,132.17,132.15,7.56715853]
[1765102295908,0.69,132.17,132.15,7.56715853]
[1765102305403,11.75430939,132.17,132.13,0.66]
[1765102305604,3.49822109,132.16,132.13,8.22797855]
[1765102305909,4.18822109,132.16,132.13,8.22797855]
[1765102306086,4.18822109,132.16,132.14,7.56767509]
[1765102308714,0.69,132.16,132.14,7.56767509]
[1765102309714,4.18822109,132.16,132.13,7.56817048]
[1765102310098,4.18822109,132.16,132.13,8.22817048]
[1765102310506,0.66,132.15,132.13,7.56817048]
[1765102310715,0.66,132.15,132.12,16.5286927]
[1765102311020,0.66,132.15,132.1,7.56966866]
[1765102311021,3.49822109,132.13,132.1,7.56966866]
[1765102311187,3.49822109,132.12,132.1,7.56966866]
[1765102311386,3.49822109,132.12,132.09,8.23037176]
[1765102311685,4.15822109,132.12,132.09,8.23037176]
[1765102312086,0.66,132.11,132.09,7.57037176]
[1765102312281,0.66,132.11,132.08,15.89093259]
[1765102312282,4.15822109,132.11,132.08,15.89093259]
[1765102312603,4.15822109,132.11,132.08,7.57093259]
[1765102312800,4.15822109,132.11,132.08,8.23093259]
[1765102312801,0.66,132.1,132.08,8.23093259]
[1765102313493,4.15822109,132.11,132.08,8.23093259]
[1765102314089,0.66,132.11,132.09,0.66]
[1765102314314,4.16822109,132.12,132.09,0.66]
[1765102315192,0.67,132.11,132.09,8.23029853]
[1765102315392,4.16822109,132.12,132.09,8.23029853]
[1765102317612,3.49822109,132.12,132.09,8.23029853]
[1765102317805,0.67,132.11,132.09,8.23029853]
[1765102320224,4.16822109,132.12,132.09,8.23029853]
[1765102321418,11.73711668,132.12,132.09,8.23029853]
[1765102321732,11.73711668,132.12,132.05,0.69]
[1765102321733,3.49822109,132.1,132.05,0.69]
[1765102322027,8.99,132.11,132.06,7.5719757]
[1765102322028,3.49822109,132.09,132.06,7.5719757]
[1765102322506,4.16822109,132.09,132.06,8.2619757]
[1765102323132,3.49822109,132.1,132.07,0.69]
[1765102323490,4.16822109,132.1,132.07,0.69]
[1765102324524,2.91218168,132.1,132.07,8.26151655]
[1765102326020,2.24218168,132.1,132.07,7.57151655]
[1765102326196,2.91218168,132.09,132.06,8.26206909]
[1765102331304,2.24218168,132.09,132.07,0.69]
[1765102332125,2.91218168,132.09,132.06,8.26206909]
[1765102332531,2.24218168,132.09,132.07,0.69]
[1765102335934,2.91218168,132.09,132.07,0.69]
[1765102337437,2.24218168,132.09,132.07,8.26160301]